Cogmind - Beta 15 @@@ ROGUE MODE // 2025.07.21 @ 20:11:31 Player: supraman Result: Destroyed by S-27 Virus with Autogun Performance ------------- Evolutions (3) 1500 Regions Visited (4) 800 Robots Destroyed (32) 160 Value Destroyed (981) 981 Prototype IDs (2) 40 Alien Tech Used (0) 0 Bonus (0) 0 TOTAL SCORE: 3481 Bonus ------- None Cogmind --------- Core Integrity 0/700 Matter 290/300 Energy 99/100 System Corruption 2% Temperature Cool (0) Movement Core (50) Location -7/Factory Parts ------- > --- POWER (1) -------- (None) > --- PROPULSION (5) --- (None) > --- UTILITY (5) ------ (None) > --- WEAPON (2) ------- (None) > --- INVENTORY (5) ---- Improved Ion Engine Medium Laser Advanced Beam Cannon Assault Rifle Assault Rifle Peak State ------------ > --- POWER ------------ Deuterium Engine > --- PROPULSION ------- Aluminum Leg Aluminum Leg Aluminum Leg Titanium Leg > --- UTILITY ---------- Cooling System Large Storage Unit Weight Redist. System Visual Processing Unit > --- WEAPON ----------- Heavy EM Shotgun Medium Laser > --- INVENTORY -------- Ion Engine Ion Engine Light Ion Engine Improved Ion Engine Wheel Compact Wheel Shield Generator Medium Laser Medium Laser Medium Laser Small Laser Advanced Beam Cannon Advanced Beam Cannon Assault Rifle Assault Rifle [Rating: 23] Favorites ----------- Power Ion Engine Engine Ion Engine Propulsion Aluminum Leg Leg Aluminum Leg Utility Large Storage Unit Device Heat Sink Storage Large Storage Unit Processor Visual Processing Unit Weapon Medium Laser Energy Gun Medium Laser Energy Cannon Advanced Beam Cannon Ballistic Gun Assault Rifle Build | -11 -10 -9 -8 -7 ------- Run | Yrd Mat Mat Mat Fac Slots Evolved 6 | . . 2 2 2 Power . | . . . . . Propulsion 3 | . . 1 1 1 Utility 3 | . . 1 1 1 Weapon . | . . . . . Parts Attached 36 | 6 2 10 15 3 Power 5 | 1 . 1 2 1 Engine 5 | 1 . 1 2 1 Core . | . . . . . Reactor . | . . . . . Propulsion 9 | 2 . 1 6 . Treads . | . . . . . Leg 9 | 2 . 1 6 . Wheel . | . . . . . Hover . | . . . . . Flight . | . . . . . Utility 9 | 1 1 4 3 . Device 5 | . . 2 3 . Storage 2 | 1 . 1 . . Processor 2 | . 1 1 . . Hackware . | . . . . . Protection . | . . . . . Artifact . | . . . . . Weapon 13 | 2 1 4 4 2 Energy Gun 9 | . 1 3 4 1 Energy Cannon 2 | . . 1 . 1 Ballistic Gun 2 | 2 . . . . Ballistic Cannon . | . . . . . Launcher . | . . . . . Special Weapon . | . . . . . Impact Weapon . | . . . . . Slashing Weapon . | . . . . . Piercing Weapon . | . . . . . Special Melee Weapon . | . . . . . Unidentified Prototypes 2 | . . 1 1 . Corrupted Parts 1 | . . . 1 . System Corruption 5 | . . . 5 . Parts Lost 21 | . . 1 13 7 Power 2 | . . . 1 1 Propulsion 9 | . . . 6 3 Utility 5 | . . 1 3 1 Weapon 5 | . . . 3 2 Highest Loss Streak 11 | . . 1 11 7 To Critical Strikes . | . . . . . Average Backups 10 | 2 6 11 13 12 Power 2 | . 1 2 3 3 Propulsion 2 | 1 2 2 2 1 Utility . | . . . . . Weapon 5 | . 1 6 7 6 Tool/Special . | . . . . . Unused Backups 4 | . . . . 4 Power 1 | . . . . 1 Propulsion 2 | . . . . 2 Utility . | . . . . . Weapon 1 | . . . . 1 Tool/Special . | . . . . . Average Slot Usage (%) 77 | . 86 87 89 38 Engine 9 | . 14 11 8 4 Leg 27 | . 28 33 32 15 Device 7 | . . 6 16 4 Storage 10 | . 14 11 9 5 Processor 2 | . 1 3 5 . Energy Gun 10 | . 1 17 17 7 Ballistic Gun 8 | . 26 2 . . Peak Build Rating 23 | 6 7 12 23 14 Average Rating 10 | 5 6 9 16 8 On Entrance 8 | . 6 7 12 15 Naked Turns 63 | . . . . 63 Heaviest Build 37 | 14 14 31 37 27 Greatest Support 53 | 20 20 30 53 27 Greatest Overweight (x) 2 | . . 1 1 2 Average Overweight (x) . | . . . . . Largest Inventory Capacity 15 | 8 8 15 15 15 Average Capacity 12 | 7 8 14 15 12 Most Carried 15 | 4 7 15 15 15 Average Carried 10 | 2 6 11 13 12 Final Capacity 15 | 8 8 15 15 5 Final Carried 15 | 4 7 15 13 5 Class Distribution -------------------- 88% | Mutant 11% | Scavenger-Mutant Dominant Class ---------------- Mutant | -10/Materials Mutant | -9/Materials Mutant | -8/Materials Mutant | -7/Factory Resources | -11 -10 -9 -8 -7 ----------- Run | Yrd Mat Mat Mat Fac Matter Collected 748 | 242 162 96 248 . Remotely 30 | . . . 30 . Salvage Created 1101 | . 266 96 622 117 Parts 64 | . 19 5 38 2 Haulers Intercepted . | . . . . . Recyclers Shooed . | . . . . . Parts Field Recycled . | . . . . . Retrieved Matter . | . . . . . Parts Self-Destructed . | . . . . . Prevented . | . . . . . Kills | -11 -10 -9 -8 -7 ------- Run | Yrd Mat Mat Mat Fac Combat Hostiles Destroyed 26 | . 5 2 16 3 Guns 20 | . 5 1 13 1 Cannons 1 | . . 1 . . AOE 4 | . . . 3 1 Classes Destroyed 10 | . 4 1 5 . Worker 1 | . . . 1 . Builder 2 | . 1 . 1 . Recycler 1 | . . . 1 . Operator 1 | . 1 . . . Watcher 1 | . 1 . . . Swarmer 7 | . . . 7 . Grunt 14 | . 5 1 5 3 Brawler 1 | . . . 1 . Sentry 3 | . . 1 2 . Hunter 1 | . . . 1 . Best Kill Streak 8 | . 3 1 8 3 Combat Bots Only 6 | . 3 1 6 3 Max Kills in Single Turn 3 | . 1 1 3 1 Gunslinging . | . . . . . Exploded 2 | . . . 2 1 Melee . | . . . . . Uniques/NPCs Destroyed . | . . . . . Combat | -11 -10 -9 -8 -7 -------- Run | Yrd Mat Mat Mat Fac Hostile Shots Fired 262 | . 20 8 142 92 Missed 76 | . 7 3 41 25 Hits 186 | . 13 5 101 67 Melee 2 | . . . 2 . Projectile 184 | . 13 5 99 67 Critical Strikes 10 | . . 1 6 3 Damage Taken 2871 | . 184 103 1375 1209 Core 953 | . 44 . 204 705 Absorbed by Shields 110 | . . . 69 41 Core Remaining (%) 86 | 100 82 100 62 . Volleys Fired 97 | . 31 4 44 18 Largest 2 | . 2 2 2 2 Hottest 115 | . 40 108 115 115 Shots Fired 181 | . 62 8 77 34 Gun 178 | . 62 7 77 32 Cannon 3 | . . 1 . 2 Launcher . | . . . . . Special . | . . . . . Kinetic 62 | . 62 . . . Thermal 105 | . . 8 65 32 Explosive . | . . . . . Electromagnetic 14 | . . . 12 2 Robot Hit Streak 13 | . 5 3 13 9 Robot Miss Streak 8 | . 8 3 4 3 Penetration Max . | . . . . . Secondary Targets 3 | . . . 2 1 Max Gunslinging Chain 1 | . . . 1 1 Shots Hit Robots 106 | . 31 5 49 21 Core Hits 55 | . 15 3 31 6 Critical Kills . | . . . . . Critical Parts Destroyed . | . . . . . Critical Strikes 4 | . . . 3 1 Burn 4 | . . . 3 1 Melee Attacks . | . . . . . Impact . | . . . . . Slashing . | . . . . . Piercing . | . . . . . Sneak Attacks . | . . . . . Combat Hostiles . | . . . . . Follow-up Attacks . | . . . . . Damage Inflicted 1874 | . 408 67 948 451 Guns 1485 | . 408 47 743 287 Cannons 20 | . . 20 . . Explosions 369 | . . . 205 164 Melee . | . . . . . Ramming . | . . . . . Kinetic 408 | . 408 . . . Thermal 1276 | . . 67 758 451 Explosive . | . . . . . Electromagnetic 190 | . . . 190 . Impact . | . . . . . Slashing . | . . . . . Piercing . | . . . . . Highest Corruption 10 | . . . 10 2 Average Corruption 7 | . . . 7 1 Corruption Purged . | . . . . . Corruption Blocked . | . . . . . Effects 8 | . . . 7 1 Message Errors 2 | . . . 2 . Heat Flow Errors 1 | . . . 1 . Data Loss (minor) 1 | . . . 1 . Alerts 1 | . . . . 1 Misdirections 1 | . . . 1 . Weapon Failures 2 | . . . 2 . Overload Shots . | . . . . . Overflow Damage 205 | . . . . 205 Projectiles . | . . . . . Explosions 205 | . . . . 205 Melee . | . . . . . Knockbacks . | . . . . . Impact . | . . . . . Kinetic . | . . . . . Secondary . | . . . . . Self-Inflicted Damage 255 | . . . 76 179 Shots 4 | . . . 2 2 Rammed . | . . . . . Targets Rammed . | . . . . . Kicked . | . . . . . Crushed . | . . . . . Highest Temperature 463 | . 2 39 463 424 Average Temperature 170 | . 2 26 164 211 Received Heat Transfer 927 | . 81 36 492 318 Effects 5 | . . . 4 1 Shutdowns 2 | . . . 2 . Energy Bleed 1 | . . . . 1 Matter Decay 1 | . . . 1 . Short Circuit 1 | . . . 1 . Siege Activations . | . . . . . Martial Activations . | . . . . . Shielding Activations . | . . . . . Robots Disrupted . | . . . . . Combat Hostiles . | . . . . . Robots Corrupted . | . . . . . Combat Hostiles . | . . . . . Parts Fried . | . . . . . Impact Corruptions . | . . . . . Robots Melted 1 | . . . . 1 Combat Hostiles 1 | . . . . 1 Parts Melted 11 | . . 1 7 3 Heat Transferred 3287 | . . 173 2163 951 Parts Sabotaged . | . . . . . Parts Stolen . | . . . . . Parts Stripped . | . . . . . Power Chain Reactions 2 | . . . 2 . Alert | -11 -10 -9 -8 -7 ------- Run | Yrd Mat Mat Mat Fac Maximum Alert Level . | . . . . . Low Security (%) 100 | 100 100 100 100 100 Level 1 . | . . . . . Level 2 . | . . . . . Level 3 . | . . . . . Level 4 . | . . . . . Level 5 . | . . . . . High Security . | . . . . . Max Security . | . . . . . Peak Influence 146 | . 86 30 146 100 Initial 53 | . . . . 53 Average 39 | . 33 5 73 32 Influence Increases 800 | . 169 50 401 180 Destroy 0b10 Robot/C 520 | . 100 40 320 60 Destroy 0b10 Robot/NC 30 | . 15 . 15 . Destroy Leader 102 | . 22 10 60 10 Successful Hack 15 | . 15 . . . Disable Machine 60 | . 15 . . 45 Destroy Structure 28 | . 2 . 6 20 Lose Combat Pursuer 45 | . . . . 45 Influence Decreases 700 | . 169 50 284 197 Entered New Map 64 | . . . . 64 Time Decay 466 | . 169 50 154 93 Lost Part 170 | . . . 130 40 Squads Dispatched 5 | . 1 . 2 2 Investigation 1 | . . . . 1 Extermination 1 | . . . . 1 Reinforcement 3 | . 1 . 2 . Assault . | . . . . . Garrison . | . . . . . Intercept . | . . . . . Searches Triggered . | . . . . . Construction Impeded 1 | . . . 1 . Haulers Reinforced . | . . . . . Active Scanning Responses . | . . . . . Cargo Convoy Interrupts . | . . . . . Stealth | -11 -10 -9 -8 -7 --------- Run | Yrd Mat Mat Mat Fac Distress Signals 2 | . 2 . . . Communications Jammed . | . . . . . Distress Signals . | . . . . . Times Spotted 45 | . 12 2 20 11 Peak Tracking Total 8 | . 5 1 8 6 Tactical Retreats 2 | . . . . 2 Traps | -11 -10 -9 -8 -7 ------- Run | Yrd Mat Mat Mat Fac Traps Triggered 3 | . 1 1 . 1 Indirectly . | . . . . . Trap Hack Attempts . | . . . . . Triggered . | . . . . . Disarmed . | . . . . . Reprogrammed . | . . . . . Reused . | . . . . . Traps Extracted . | . . . . . Installed . | . . . . . Triggered . | . . . . . Machines | -11 -10 -9 -8 -7 ---------- Run | Yrd Mat Mat Mat Fac Machines Disabled 4 | . 1 . . 3 Max in Single Turn 3 | . 1 . . 3 Machines Repaired . | . . . . . Machines Dismantled . | . . . . . Machines Sabotaged . | . . . . . Overloaded Fab Kills . | . . . . . Hacking | -11 -10 -9 -8 -7 --------- Run | Yrd Mat Mat Mat Fac Machines Accessed 4 | . 2 1 1 . Terminals 4 | . 2 1 1 . Fabricators . | . . . . . Repair Stations . | . . . . . Recycling Units . | . . . . . Scanalyzers . | . . . . . Garrison Access . | . . . . . Total Hacks 9 | . 3 2 4 . Successful 4 | . 3 . 1 . Failed 5 | . . 2 3 . Catastrophic 1 | . . 1 . . Database Lockouts . | . . . . . Manual 3 | . . 2 1 . Terminals 9 | . 3 2 4 . Fabricators . | . . . . . Repair Stations . | . . . . . Recycling Units . | . . . . . Scanalyzers . | . . . . . Garrison Access . | . . . . . Terminal Hacks 4 | . 3 . 1 . Robot Analysis 1 | . 1 . . . Level Access Points 1 | . 1 . . . Emergency Access Points 1 | . . . 1 . Recall Investigation 1 | . 1 . . . Fabricator Hacks . | . . . . . Repair Station Hacks . | . . . . . Recycling Unit Hacks . | . . . . . Scanalyzer . | . . . . . Garrison Access Hacks . | . . . . . Unauthorized Hacks . | . . . . . Terminals . | . . . . . Fabricators . | . . . . . Repair Stations . | . . . . . Recycling Units . | . . . . . Scanalyzers . | . . . . . Garrison Access . | . . . . . Data Cores Recovered . | . . . . . Used . | . . . . . Hacking Detections 1 | . . . 1 . Full Trace Events . | . . . . . Feedback Events . | . . . . . Feedback Blocked . | . . . . . Robot Schematics Acquired . | . . . . . Robots Built . | . . . . . Authchips . | . . . . . Time . | . . . . . Total Robot Build Rating . | . . . . . Part Schematics Acquired . | . . . . . Parts Built . | . . . . . Authchips . | . . . . . Time . | . . . . . Total Part Build Rating . | . . . . . Parts Repaired . | . . . . . Time . | . . . . . Parts Recycled . | . . . . . Recycled Matter . | . . . . . Retrieved Matter . | . . . . . Retrieved Components . | . . . . . Parts Scanalyzed . | . . . . . Part Schematics Acquired . | . . . . . Parts Damaged . | . . . . . Bothacking | -11 -10 -9 -8 -7 ------------ Run | Yrd Mat Mat Mat Fac Used RIF Installer . | . . . . . Robots Hacked . | . . . . . Non-combat . | . . . . . Combat . | . . . . . Robot Hacks Applied . | . . . . . Relay Couplers Released . | . . . . . Fabnet Peak Effective % . | . . . . . Robots Rewired . | . . . . . Allies Hacked . | . . . . . Hacks Repelled . | . . . . . Allies | -11 -10 -9 -8 -7 -------- Run | Yrd Mat Mat Mat Fac Total Allies . | . . . . . Largest Group . | . . . . . Highest-Rated Group . | . . . . . Highest-Rated Ally . | . . . . . Total Orders . | . . . . . Ally Attacks . | . . . . . Total Damage . | . . . . . Kills . | . . . . . Allies Corrupted . | . . . . . Allies Melted . | . . . . . Intel | -11 -10 -9 -8 -7 ------- Run | Yrd Mat Mat Mat Fac Active Infowar (turns) 320 | . . 33 287 . Optics 320 | . . 33 287 . Robot Analysis Total 1 | . 1 . . . Derelict Logs Recovered . | . . . . . Drone Launches . | . . . . . Drone Recoveries . | . . . . . Exploration | -11 -10 -9 -8 -7 ------------- Run | Yrd Mat Mat Mat Fac Turns Passed 1465 | 65 385 262 454 299 Spaces Moved 916 | 46 207 175 234 254 Core 129 | 4 . . . 125 Treads . | . . . . . Legs 787 | 42 207 175 234 129 Wheels . | . . . . . Hover . | . . . . . Flight . | . . . . . Fastest Speed 50 | 50 120 120 120 50 Average Speed 112 | 113 120 120 127 88 Slowest Speed 260 | 120 120 190 200 260 Overloaded Moves . | . . . . . Propulsion Burnouts . | . . . . . Robots Hopped . | . . . . . Potential Cave-ins . | . . . . . Cave-ins Triggered . | . . . . . Exploration Rate (%) 19 | 4 41 21 22 10 Regions Visited 4 Branch Regions . Pre-discovered Areas . | . . . . . Known Exits Taken 1 | . 1 . . . Unknown Exits Taken 3 | 1 . 1 1 . Scrap Searched . | . . . . . Spaces Dug . | . . . . . Terrain Destroyed 43 | . . . 4 39 Melee . | . . . . . Projectile . | . . . . . AOE 43 | . . . 4 39 Terrain Rammed . | . . . . . Walls Destroyed . | . . . . . Machines Disabled . | . . . . . Actions | -11 -10 -9 -8 -7 --------- Run | Yrd Mat Mat Mat Fac Total 1152 | 55 280 215 307 295 Wait 79 | . 38 17 10 14 Move 912 | 45 206 174 233 254 Hop . | . . . . . Pick Up 13 | 4 3 6 . . Fast Attach 22 | 6 1 5 9 1 Attach 8 | . . 1 5 2 Detach 5 | . . 2 . 3 Swap 11 | . 1 5 4 1 Drop 5 | . . 1 2 2 Fire 97 | . 31 4 44 18 Melee . | . . . . . Ram . | . . . . . Kick . | . . . . . Crush . | . . . . . Escape Stasis . | . . . . . Rewire . | . . . . . Trap . | . . . . . Miscellaneous . | . . . . . Route ------- -11/Scrapyard -10/Materials (discovered 5 exits: *Mat x3 / [*Min x2]) -9/Materials -8/Materials -7/Factory (discovered 1 exit: [*Fac]) History --------- Turn | Location | Event 10 | -11/Scrapyard | Discovered new exit (range 15) 66 | -11/Scrapyard | Entered Materials 105 | -10/Materials | Identified exit to Materials 269 | -10/Materials | Discovered new exit (range 16) 299 | -10/Materials | Discovered new exit (range 5) 314 | -10/Materials | Build established: Mutant 451 | -10/Materials | Entered another Materials area 451 | -9/Materials | Evolved 2 slots: Propulsion x1, Utility x1 656 | -9/Materials | Discovered new exit (range 16) 713 | -9/Materials | Entered another Materials area 713 | -8/Materials | Evolved 2 slots: Propulsion x1, Utility x1 1072 | -8/Materials | System corruption reached 10% 1077 | -8/Materials | Lost 11 parts (1p4n3u3w) 1156 | -8/Materials | Discovered new exit (range 9) 1167 | -8/Materials | Entered Factory 1167 | -7/Factory | Evolved 2 slots: Propulsion x1, Utility x1 1419 | -7/Factory | Lost 7 parts (1p3n1u2w) 1437 | -7/Factory | Core integrity fell below 50% 1444 | -7/Factory | Core integrity fell below 20% 1465 | -7/Factory | Discovered new exit (range 10) 1466 | -7/Factory | Destroyed by S-27 Virus with Autogun Last Messages --------------- Particle Gun destroyed. Destroyed Particle Gun. Dropped Lrg. Storage Unit. Overheating: Energy bleed (-3). K-01 Serf collects debris. Triggered Alarm Trap. An alarm sounds. ALERT: Alarm triggered, dispatching investigation squad. ALERT: Potential suspicious activity detected, Programmers report to Factory Zone 7A. Door malfunctions. Acquired Imp. EM Pulse Cannon. Dropped Imp. EM Pulse Cannon. System corrupted: IFF burst signal emitted. U-05 Engineer lays Concrete. K-01 Serf pushes C-17 Slicer. U-05 Engineer lays Concrete. K-01 Serf pushes C-17 Slicer. EXIT=FOUND Map ----- +----------------------------------------------------+ | ?????????????????????????????????????????????????? | | ?????????????????????????????????????????????????? | | ?????????????????????????????????????????????????? | | ?????????????????????????????????????????????????? | | ?????????????????????????????????????????????????? | | ?????????????????????????????????????????????????? | | ?????????????????????????????????????????????????? | | ?????????????????????????????????????????????????? | | ?????????????????????????????????????????????????? | | ?????????????????????????????????????????????????? | | ?????????????????????????????????????????????????? | | ?????????????????????????????????????????????????? | | ?????????????????????????????????????????????????? | | ?????????????????????????????????????????????????? | | ?????????????????????????????????????????????????? | | ?????????????????????????????????????????????????? | | ?????????????????????????????????????????????????? | | ??????????????????###????????????????????????????? | | ?????????????????##T ##??????????????????????????? | | ???????????####### ??????????????????????????? | | ??????????? ####??????????????????????? | | ?????????? ??????????????????????? | | ?????????? #??????????????????????? | | ??????????# #??????????????????????? | | ??????????# ###### ????????? | | ??????????# @ < ????????? | | ????????????????######### ###### ????????? | | ????????????????????????# #??????????????????????? | | ????????????????????????# #?????????????????????? | | ????????????????????????# ##########????????????? | | ???????????????????????##s## #????????????? | | ?????????????????#######s # #????????????? | | ????????????????+ T + #????????????? | | ????????????????# ###### #########????????????? | | ???????????????????????##s#######################/ | | ????????????????????????# ! # | | ????????????????????????# ! # | | ????????????????????????# """"""" # | | ????????????????????????# """"""" # | | ????????????????????????# """"""" ] # | | ????????????????????????# """"""" # | | ????????????????????????# # ] | | ????????????????????????# """"""" # | | ????????????????????????# """"""" # | | ????????????????????????# """"""" # | | ????????????????????????# """"""" # | | ????????????????????????# # | | ????????????????????????##/#######+#############+# | | ???????????????????? | | ???????????????????? | +----------------------------------------------------+ Best States ------------- Heat Dissipation 53 Energy Generation 14 Energy Capacity 275 Matter Stores 300 Matter Capacity 300 Sight Range 18 Terrain Scan Density 10 Additional Mass Support 6 Evasion (%) 55 Targeting Accuracy 5 Item Schematics ----------------- None Robot Schematics ------------------ None Fabricated ------------ Nothing Repaired ---------- Nothing Alien Tech Used ----------------- None Achievements -------------- None Challenges ------------ None Game ------ Seed SingularityTransportStreamer Manual? 0 Play Time 00:48:58 Cumulative 11.2 hours Start 2025.07.21 @ 19:03:35 End 2025.07.21 @ 20:11:31 Sessions 1 Manual Loads 0 Difficulty Rogue Special Mode None Game No. 4 Rogue 3 Adventurer 1 Explorer 0 Win Type - Total 0 Types 0/0/0/0/0/0/0/0/0/0 Lore% 2 Gallery% 9 Achievement% 13 Wizard Run 0 Options --------- Layout 1 ASCII 0 Keyboard 0 Movement Mouse Keybinds 0 Fullscreen 1 Font 24/Smallcaps Map View 50x35 Zoom Use 0% Tactical HUD 0 Map Filters NONE Filters NONE Steam 1 RUN: 74bc152c-9865-4917-9c9a-b05378431aa5